bitfinex/quotes_BTCUSD_20241119
["timestamp","ask_amount","ask_price","bid_price","bid_amount"]
[1731999721142,1.44239587,92008.0,92007.0,0.14645261]
[1731999721354,1.31939587,92008.0,92007.0,0.14645261]
[1731999721573,1.31939587,92008.0,92007.0,0.19175261]
[1731999721966,1.28345397,92008.0,92007.0,0.19175261]
[1731999722179,1.46175902,92008.0,92007.0,0.14645261]
[1731999722390,1.46375902,92008.0,92007.0,0.14645261]
[1731999722601,1.58675902,92008.0,92007.0,0.14645261]
[1731999722821,1.47769647,92008.0,92007.0,0.14645261]
[1731999723036,1.47769647,92008.0,92007.0,0.12497785]
[1731999723255,1.51135675,92008.0,92007.0,0.12497785]
[1731999723477,0.97345675,92008.0,92007.0,0.12497785]
[1731999725041,0.973458,92008.0,92007.0,0.12497785]
[1731999726440,1.19611379,92008.0,92007.0,0.12497785]
[1731999727360,1.12111379,92008.0,92007.0,0.12497785]
[1731999727587,1.12111379,92008.0,92007.0,0.09194985]
[1731999727804,1.41402938,92008.0,92007.0,0.05279886]
[1731999728246,1.12196859,92008.0,92007.0,0.05279886]
[1731999728532,1.41488256,92008.0,92007.0,0.05279886]
[1731999728946,1.11728295,92008.0,92007.0,0.05279886]
[1731999729160,1.33428295,92008.0,92007.0,0.05279886]
[1731999729387,1.11728295,92008.0,92007.0,0.05279886]
[1731999729853,0.82436898,92008.0,92007.0,0.05279886]
[1731999730072,0.74376937,92008.0,92007.0,0.05279886]
[1731999730292,0.82436898,92008.0,92007.0,0.05279886]
[1731999730500,0.82436898,92008.0,92007.0,0.10259886]
[1731999734748,1.04136898,92008.0,92007.0,0.10259886]
[1731999735654,0.96076937,92008.0,92007.0,0.18039886]
[1731999735869,0.82436898,92008.0,92007.0,0.18039886]
[1731999736983,0.85694021,92008.0,92007.0,0.18039886]
[1731999737857,0.82436898,92008.0,92007.0,0.13148624]
[1731999739230,0.75512556,92008.0,92007.0,0.13148624]
[1731999739469,0.83572517,92008.0,92007.0,0.13148624]
[1731999740370,0.83572517,92008.0,92007.0,0.13139924]
[1731999741022,1.05272517,92008.0,92007.0,0.13139924]
[1731999742145,1.04139381,92008.0,92007.0,0.13139924]
[1731999742364,0.97774983,92008.0,92007.0,0.13139924]
[1731999742587,1.00685301,92008.0,92007.0,0.13139924]
[1731999743067,1.11553901,92008.0,92007.0,0.13139924]
[1731999745930,1.09520028,92008.0,92007.0,0.13139924]
[1731999746140,1.1155482,92008.0,92007.0,0.13139924]
[1731999746371,1.1135482,92008.0,92007.0,0.13139924]
[1731999746588,1.1155482,92008.0,92007.0,0.13139924]
[1731999747277,1.11555509,92008.0,92007.0,0.13139924]
[1731999747924,0.78206235,92008.0,92007.0,0.13139924]
[1731999748146,0.99751321,92008.0,92007.0,0.13139924]
[1731999748355,0.75340656,92008.0,92007.0,0.13139924]
[1731999748572,0.53938303,92008.0,92007.0,0.13139924]
[1731999749222,0.39295127,92008.0,92007.0,0.13139924]
[1731999749524,0.41595127,92008.0,92007.0,0.13139924]
[1731999751332,0.002,92006.0,91993.0,0.07494769]
[1731999751550,0.1,92004.0,91990.0,0.108706]
[1731999751769,0.108698,91998.0,91989.0,0.108708]
[1731999751990,0.02034792,91997.0,91990.0,0.108706]
[1731999752206,0.02034792,91996.0,91981.0,0.38060429]
[1731999752427,0.02034792,91995.0,91993.0,0.001]
[1731999752638,0.02034792,91994.0,91993.0,0.001]
[1731999753076,0.02034792,91994.0,91981.0,0.217434]
[1731999753339,0.02033426,91993.0,91980.0,0.217437]
[1731999753555,0.23774426,91992.0,91980.0,0.217437]
[1731999753787,0.108708,91990.0,91982.0,0.108716]
[1731999753998,0.02033426,91989.0,91982.0,0.108716]
[1731999754218,0.12904226,91989.0,91976.0,0.217446]
[1731999754439,0.12904226,91989.0,91988.0,0.1259088]
[1731999755585,0.14504226,91989.0,91988.0,0.1259088]
[1731999756890,0.17204226,91989.0,91988.0,0.1259088]
[1731999757386,0.043,91989.0,91988.0,0.1259088]
[1731999757622,0.043,91989.0,91988.0,0.1174938]
[1731999758273,0.151708,91989.0,91988.0,0.1174938]
[1731999760879,0.19511384,91989.0,91988.0,0.1174938]
[1731999762411,0.19511384,91989.0,91988.0,0.1192038]
[1731999764075,0.08640584,91989.0,91988.0,0.1192038]
[1731999764288,0.19511384,91989.0,91988.0,0.1192038]
[1731999764721,0.151708,91989.0,91988.0,0.1192038]
[1731999767018,0.043,91989.0,91988.0,0.1192038]
[1731999769547,0.06335392,91989.0,91988.0,0.1192038]
[1731999772492,0.1404746,91991.0,91988.0,0.1192038]
[1731999772717,0.217,91996.0,91988.0,0.1192038]
[1731999772940,0.10906255,91995.0,91988.0,0.1192038]
[1731999773150,0.108705,91992.0,91988.0,0.1192038]
[1731999773584,0.10906255,91995.0,91988.0,0.1192038]
[1731999773765,0.015,91991.0,91988.0,0.1192038]
[1731999773966,0.015855,91991.0,91988.0,0.1192038]
[1731999774186,0.000855,91991.0,91988.0,0.1212038]
[1731999774413,0.000855,91991.0,91988.0,0.1192038]
[1731999774635,0.000855,91991.0,91988.0,0.1212038]
[1731999775045,0.000855,91991.0,91988.0,0.1192038]
[1731999775270,0.027855,91991.0,91988.0,0.1212038]
[1731999777029,0.037855,91991.0,91988.0,0.1222038]
[1731999779416,0.037855,91991.0,91988.0,0.2309128]
[1731999779648,0.037855,91991.0,91990.0,0.108707]
[1731999779861,0.037855,91991.0,91990.0,0.155207]
[1731999780586,0.027855,91991.0,91990.0,0.155207]
[1731999780801,0.001855,91991.0,91990.0,0.161207]
[1731999781041,0.003855,91991.0,91990.0,0.161207]
[1731999784526,0.02421964,91991.0,91990.0,0.161207]
[1731999785270,0.02421964,91991.0,91990.0,0.236907]
[1731999785493,0.02421964,91991.0,91990.0,0.32750661]
[1731999787005,0.02421964,91991.0,91990.0,0.246907]
[1731999787436,0.04688569,91999.0,91991.0,0.217411]
[1731999787650,0.04688569,91999.0,91998.0,0.108698]
[1731999788337,0.108691,92004.0,91998.0,0.108698]
[1731999788750,0.006,91999.0,91998.0,0.108698]
[1731999788954,0.001,91999.0,91998.0,0.108698]
[1731999789367,0.019,91999.0,91998.0,0.110698]
[1731999789570,0.019,91999.0,91998.0,0.002]
[1731999789777,0.019,91999.0,91998.0,0.110698]
[1731999789987,0.018,91999.0,91998.0,0.110698]
[1731999790192,0.018,91999.0,91998.0,0.160198]
[1731999790401,0.018,91999.0,91998.0,0.161198]
[1731999790617,0.126696,91999.0,91998.0,0.003]
[1731999790823,0.108696,91999.0,91994.0,0.108702]
[1731999791032,0.112696,91999.0,91998.0,0.006]
[1731999791837,0.217397,91998.0,91984.0,0.0809]
[1731999792057,0.108704,91993.0,91985.0,0.108712]
[1731999792261,0.108704,91993.0,91987.0,0.10871]
[1731999792466,0.2174,91996.0,91987.0,0.10871]
[1731999792678,0.108704,91993.0,91987.0,0.10871]
[1731999793329,0.108704,91993.0,91981.0,0.217436]
[1731999793561,0.108704,91993.0,91980.0,0.01]
[1731999793770,0.004,91999.0,91976.0,0.217447]
[1731999793771,0.108702,91995.0,91988.0,0.108709]
[1731999794003,0.108703,91994.0,91988.0,0.155009]
[1731999794419,0.110704,91993.0,91988.0,0.171009]
[1731999794636,0.110704,91993.0,91988.0,0.0783]
[1731999794837,0.108704,91993.0,91988.0,0.0463]
[1731999795244,0.108704,91993.0,91988.0,0.187009]
[1731999795497,0.003,91994.0,91988.0,0.187009]
[1731999795498,0.002,91994.0,91992.0,0.108705]
[1731999795708,0.001,91993.0,91992.0,0.108705]
[1731999795859,0.001,91993.0,91990.0,0.108707]
[1731999796059,0.001,91993.0,91991.0,0.108705]
[1731999796900,0.003,91993.0,91989.0,0.298317]
[1731999797106,0.003,91993.0,91990.0,0.108707]
[1731999797449,0.002,91993.0,91991.0,0.108705]
[1731999797654,0.108699,91997.0,91991.0,0.108705]
[1731999797874,0.108699,91997.0,91991.0,0.121705]
[1731999798082,0.001,91993.0,91992.0,0.008]
[1731999798292,0.002,91993.0,91992.0,0.008]
[1731999798494,0.001,91993.0,91991.0,0.121705]
[1731999798698,0.001,91993.0,91991.0,0.013]
[1731999798916,0.002,91993.0,91991.0,0.023]
[1731999799131,0.001,91993.0,91992.0,0.108705]
[1731999799540,0.02134772,91993.0,91992.0,0.108705]
[1731999799882,0.02034772,91993.0,91992.0,0.108705]
[1731999801012,0.02234772,91993.0,91992.0,0.127705]
[1731999801648,0.02234916,91993.0,91992.0,0.127705]
[1731999801859,0.02234916,91993.0,91992.0,0.019]
[1731999802086,0.13105216,91993.0,91992.0,0.019]
[1731999802527,0.000855,91994.0,91992.0,0.019]
[1731999802951,0.000855,91994.0,91988.0,0.00171]
[1731999802952,0.108704,91993.0,91988.0,0.110419]
[1731999803171,0.001,91993.0,91992.0,0.012]
[1731999803616,0.109557,91994.0,91988.0,0.110419]
[1731999803835,0.109557,91994.0,91992.0,0.012]
[1731999804096,0.110557,91994.0,91992.0,0.012]
[1731999804325,0.110557,91994.0,91992.0,0.021]
[1731999804326,0.001,91993.0,91992.0,0.021]
[1731999804543,0.001855,91994.0,91989.0,0.108707]
[1731999804544,0.000855,91994.0,91989.0,0.108707]
[1731999804777,0.001,91993.0,91992.0,0.012]
[1731999805007,0.109703,91993.0,91992.0,0.012]
[1731999805466,0.110703,91993.0,91992.0,0.021]
[1731999805917,0.109703,91993.0,91992.0,0.009]
[1731999806134,0.001,91993.0,91992.0,0.009]
[1731999807019,0.002,91993.0,91992.0,0.021]
[1731999808171,0.110703,91993.0,91992.0,0.021]
[1731999808866,0.010703,91993.0,91992.0,0.021]
[1731999809084,0.108703,91993.0,91992.0,0.021]
[1731999813660,0.000855,91994.0,91992.0,0.021]
[1731999814104,0.108703,91993.0,91992.0,0.021]
[1731999814570,0.12906647,91993.0,91992.0,0.021]
[1731999814805,0.12906647,91993.0,91992.0,0.129705]
[1731999814806,0.02036347,91993.0,91992.0,0.129705]
[1731999815039,0.02036347,91993.0,91992.0,0.167305]
[1731999815264,0.02036347,91993.0,91992.0,0.158305]
[1731999815472,0.02036347,91993.0,91992.0,0.170305]
[1731999815727,0.02036347,91993.0,91992.0,0.179305]
[1731999815938,0.02036347,91993.0,91992.0,0.167305]
[1731999816160,0.02036347,91993.0,91992.0,0.158305]
[1731999816370,0.02136347,91993.0,91992.0,0.170305]
[1731999816607,0.0213633,91993.0,91992.0,0.170305]
[1731999817029,0.0223633,91993.0,91992.0,0.179305]
[1731999817466,0.11138859,92000.0,91996.0,0.108699]
[1731999817899,0.108693,92002.0,91996.0,0.108699]
[1731999818175,0.10869,92004.0,91996.0,0.2174]
[1731999818349,0.04438776,92005.0,91996.0,0.108699]
[1731999818587,0.108692,92003.0,91996.0,0.108699]
[1731999818823,0.108693,92002.0,91996.0,0.108699]
[1731999819037,0.108693,92002.0,91996.0,0.109699]
[1731999819467,0.108693,92002.0,91996.0,0.108699]
[1731999819674,0.108693,92002.0,91996.0,0.117699]
[1731999819903,0.108693,92002.0,91996.0,0.116699]
[1731999820119,0.108693,92002.0,91994.0,0.217405]
[1731999820327,0.108693,92002.0,91997.0,0.108698]
[1731999820543,0.109693,92002.0,91997.0,0.108698]
[1731999820994,0.001,92002.0,91998.0,0.108696]
[1731999821444,0.001,92002.0,91996.0,0.01]
[1731999821661,0.108693,92002.0,91997.0,0.108698]
[1731999822096,0.001,92002.0,91998.0,0.108697]
[1731999822300,0.001,92002.0,91999.0,0.108696]
[1731999822506,0.003,92002.0,91999.0,0.108696]
[1731999822737,0.003,92002.0,91995.0,0.326104]
[1731999822965,0.001,92002.0,91996.0,0.2174]
[1731999823184,0.14142695,92006.0,92002.0,0.108693]
[1731999823615,0.0437088,92006.0,92002.0,0.108693]
[1731999824054,0.09771815,92007.0,91997.0,0.008]
[1731999824264,0.25071546,92007.0,92000.0,0.108695]
[1731999824923,0.004,92002.0,92000.0,0.108695]
[1731999825135,0.001,92002.0,92000.0,0.108695]
[1731999825346,0.001,92002.0,91997.0,0.108698]
[1731999825551,0.20640715,92006.0,91994.0,0.217405]
[1731999825764,0.20640715,92006.0,92000.0,0.004]
[1731999826016,0.05131031,92007.0,92000.0,0.004]
[1731999826247,0.05131031,92007.0,91980.0,0.09703888]
[1731999826248,0.04431031,92007.0,91990.0,0.01]
[1731999826485,0.108691,92004.0,91997.0,0.108698]
[1731999826738,0.109694,92002.0,91997.0,0.007]
[1731999826964,0.001,92002.0,91997.0,0.007]
[1731999827187,0.03257828,92001.0,91997.0,0.007]
[1731999827416,0.03257828,92000.0,91997.0,0.007]
[1731999827635,0.03257828,91999.0,91997.0,0.007]
[1731999827848,0.03257828,91998.0,91997.0,0.007]
[1731999828312,0.03257828,91998.0,91994.0,0.01]
[1731999828537,0.14127728,91997.0,91994.0,0.01]
[1731999828761,0.03257828,91996.0,91994.0,0.01]
[1731999828981,0.03257828,91995.0,91994.0,0.01]
[1731999829206,0.03257828,91995.0,91992.0,0.1600136]
[1731999829443,0.001,91998.0,91994.0,0.011]
[1731999829718,0.05293392,91997.0,91994.0,0.011]
[1731999829953,0.217389,92001.0,91992.0,0.0017096]
[1731999829954,0.16163392,91996.0,91992.0,0.0017096]
[1731999830175,0.05393392,91995.0,91994.0,0.011]
[1731999830401,0.05393481,91995.0,91994.0,0.011]
[1731999831070,0.05393481,91995.0,91994.0,0.23876455]
[1731999831296,0.05393481,91995.0,91994.0,0.36996455]
[1731999831516,0.05293481,91995.0,91994.0,0.35896455]
[1731999831738,0.05293481,91995.0,91994.0,0.36996455]
[1731999831950,0.05393481,91995.0,91994.0,0.36996455]
[1731999832192,0.05293481,91995.0,91994.0,0.35896455]
[1731999832421,0.1411051,92005.0,92002.0,0.108693]
[1731999832645,0.1411051,92005.0,91997.0,0.01]
[1731999832864,0.15276961,92008.0,92001.0,0.108693]
[1731999833101,0.108687,92007.0,92001.0,0.108693]
[1731999833327,0.108687,92007.0,91994.0,0.006]
[1731999833328,0.108701,91995.0,91994.0,0.006]
[1731999834535,0.109701,91995.0,91994.0,0.017]
[1731999834776,0.109701,91995.0,91994.0,0.011]
[1731999835019,0.109701,91995.0,91992.0,0.0017096]
[1731999835020,0.108703,91993.0,91992.0,0.0017096]
[1731999836443,0.110703,91993.0,91992.0,0.0147096]
[1731999838663,0.111703,91993.0,91992.0,0.0237096]
[1731999840730,0.003,91993.0,91992.0,0.48787715]
[1731999840955,0.003,91993.0,91992.0,0.47787715]
[1731999841239,0.003,91993.0,91992.0,0.48787715]
[1731999841461,0.001,91993.0,91992.0,0.47487715]
[1731999841692,0.16402509,92006.0,91995.0,0.01]
[1731999841914,0.16402509,92006.0,92001.0,0.108694]
[1731999842148,0.16402509,92006.0,91998.0,0.227395]
[1731999842381,0.0008548,92006.0,92003.0,0.108691]
[1731999842608,0.0008548,92006.0,91999.0,0.217393]
[1731999842833,0.0008548,92006.0,92005.0,0.01]
[1731999843268,0.0018548,92006.0,92005.0,0.01]
[1731999843494,0.0008548,92006.0,92005.0,0.01]
[1731999844407,0.0018548,92006.0,92005.0,0.01]
[1731999844637,0.02219416,92006.0,92005.0,0.118689]
[1731999844858,0.02119416,92006.0,92005.0,0.118689]
[1731999845096,0.02219416,92006.0,92005.0,0.125689]
[1731999845540,0.02319416,92006.0,92005.0,0.137689]
[1731999847541,0.16604896,92008.0,92006.0,0.108687]
[1731999848626,0.16604896,92008.0,92006.0,0.118687]
[1731999848936,0.16804896,92008.0,92007.0,0.108687]
[1731999849803,0.16804896,92008.0,92007.0,0.118687]
[1731999850008,0.0008549,92010.0,92009.0,0.108685]
[1731999851085,0.0018549,92010.0,92009.0,0.115685]
[1731999851774,0.0018549,92010.0,92009.0,0.125685]
[1731999852914,0.0018549,92010.0,92009.0,0.130685]
[1731999854004,0.0018549,92010.0,92009.0,0.23974755]
[1731999858422,0.0018549,92010.0,92009.0,0.022]
[1731999858626,0.1105379,92010.0,92009.0,0.012]
[1731999859086,0.0018549,92010.0,92009.0,0.022]
[1731999859933,0.0018549,92010.0,92009.0,0.012]
[1731999860151,0.0018549,92010.0,92009.0,0.022]
[1731999860587,0.1105379,92010.0,92009.0,0.022]
[1731999860794,0.1105379,92010.0,92009.0,0.012]
[1731999861219,0.1105379,92010.0,92009.0,0.022]
[1731999861450,0.1105379,92010.0,92009.0,0.012]
[1731999862346,0.0355379,92010.0,92009.0,0.012]
[1731999862554,0.2182179,92012.0,92009.0,0.012]
[1731999862763,0.108685,92009.0,92008.0,0.0017094]
[1731999862979,0.12900726,92009.0,92008.0,0.0017094]
[1731999864502,0.13000726,92009.0,92008.0,0.0107094]
[1731999865593,0.13000726,92009.0,92008.0,0.0177094]
[1731999866900,0.001,92009.0,92008.0,0.0177094]
[1731999867974,0.02133919,92009.0,92008.0,0.0177094]
[1731999868467,0.02133915,92009.0,92008.0,0.0177094]
[1731999869773,0.02133915,92009.0,92008.0,0.01677653]
[1731999870407,0.02133915,92009.0,92008.0,0.13546253]
[1731999871539,0.02135604,92009.0,92008.0,0.13546253]
[1731999877584,0.14042034,92014.0,92013.0,0.10868]
[1731999879550,0.14242034,92014.0,92013.0,0.10868]
[1731999879990,0.14242034,92014.0,92013.0,0.11268]
[1731999880879,0.002,92014.0,92013.0,0.004]
[1731999881144,0.1268,92014.0,92008.0,0.00077653]
[1731999881317,0.108685,92009.0,92008.0,0.00077653]
[1731999882584,0.236285,92009.0,92008.0,0.00077653]
[1731999883015,0.34534755,92009.0,92008.0,0.00077653]
[1731999883265,0.34634755,92009.0,92008.0,0.02477653]
[1731999883485,0.34534755,92009.0,92008.0,0.00077653]
[1731999883716,0.40360312,92009.0,92000.0,1.0]
[1731999883927,0.40360312,92009.0,92008.0,0.007]
[1731999883928,0.55645641,92009.0,92008.0,0.007]
[1731999884168,0.44789617,92009.0,92000.0,1.0]
[1731999884380,0.31989361,92001.0,92000.0,1.0]
[1731999885306,0.41755728,92001.0,92000.0,1.0]
[1731999885539,0.31989361,92001.0,92000.0,1.0]
[1731999886429,0.32989361,92001.0,92000.0,1.001]
[1731999887079,0.249294,92001.0,92000.0,1.001]
[1731999887507,0.249294,92001.0,92000.0,1.002]
[1731999887768,0.46195616,92001.0,92000.0,1.002]
[1731999887992,0.60845167,92001.0,92000.0,1.002042]
[1731999888212,0.82226441,92001.0,92000.0,1.002042]
[1731999888425,0.7416648,92001.0,92000.0,1.002042]
[1731999888653,0.52773033,92001.0,92000.0,1.002042]
[1731999889584,0.40167549,92001.0,92000.0,1.002042]
[1731999890433,0.22171294,92001.0,92000.0,1.002042]
[1731999892531,0.11301894,92001.0,92000.0,1.002042]
[1731999892825,0.22171294,92001.0,92000.0,1.002042]
[1731999894569,0.25420176,92001.0,92000.0,1.002042]
[1731999895192,0.22171294,92001.0,92000.0,1.002042]
[1731999896222,0.201394,92001.0,92000.0,1.002042]
[1731999896424,0.22169782,92001.0,92000.0,1.002042]
[1731999897304,0.43435998,92001.0,92000.0,1.002042]
[1731999897516,0.40146037,92001.0,92000.0,1.002042]
[1731999898838,0.40146037,92001.0,92000.0,1.0037514]
[1731999899473,0.50146037,92001.0,92000.0,1.0037514]
[1731999899899,0.59901641,92001.0,92000.0,1.0037514]
[1731999901419,0.68961602,92001.0,92000.0,1.0037514]
[1731999901866,0.59205998,92001.0,92000.0,1.0037514]
[1731999902072,0.95181217,92001.0,92000.0,1.0037514]
[1731999902278,0.59205998,92001.0,92000.0,1.0037514]
[1731999902488,0.95175803,92001.0,92000.0,1.0037514]
[1731999902904,0.95375803,92001.0,92000.0,1.0037514]
[1731999903127,1.14864751,92001.0,92000.0,1.0037514]
[1731999903355,0.95175803,92001.0,92000.0,1.0037514]
[1731999903788,1.14664751,92001.0,92000.0,1.0037514]
[1731999904212,1.14659913,92001.0,92000.0,1.0037514]
[1731999904466,1.14859913,92001.0,92000.0,1.0037514]
[1731999904670,0.95175803,92001.0,92000.0,1.0037514]
[1731999904882,0.73818795,92001.0,92000.0,1.0037514]
[1731999905089,0.59205998,92001.0,92000.0,1.0037514]
[1731999905304,0.73817475,92001.0,92000.0,1.0037514]
[1731999905755,0.71787093,92001.0,92000.0,1.0037514]
[1731999905968,0.51145476,92001.0,92000.0,1.0037514]
[1731999906207,0.50145476,92001.0,92000.0,1.0037514]
[1731999906434,0.51145476,92001.0,92000.0,1.0037514]
[1731999907142,0.50145476,92001.0,92000.0,1.0037514]
[1731999907378,0.60884828,92001.0,92000.0,1.0037514]
[1731999907599,0.43645476,92001.0,92000.0,1.0027514]
[1731999909380,0.42645476,92001.0,92000.0,1.0017514]
[1731999909639,0.43245476,92001.0,92000.0,1.0027514]
[1731999909859,0.42645476,92001.0,92000.0,1.0027514]
[1731999910082,0.42645476,92001.0,92000.0,1.0017514]
[1731999910297,0.44645476,92001.0,92000.0,1.0037514]
[1731999910524,0.45545476,92001.0,92000.0,1.0047514]
[1731999910951,0.44545476,92001.0,92000.0,1.0047514]
[1731999911170,0.45545476,92001.0,92000.0,1.0047514]
[1731999911404,0.44730946,92001.0,92000.0,1.0037514]
[1731999911625,0.45730946,92001.0,92000.0,1.0047514]
[1731999912098,0.42730946,92001.0,92000.0,1.0027514]
[1731999912330,0.45230946,92001.0,92000.0,1.0047514]
[1731999913007,0.53290907,92001.0,92000.0,1.0047514]
[1731999913220,0.51461086,92001.0,92000.0,1.0047514]
[1731999913589,0.53494744,92001.0,92000.0,1.0047514]
[1731999913798,0.53494744,92001.0,92000.0,0.78333317]
[1731999914665,0.53294744,92001.0,92000.0,0.78333317]
[1731999914871,0.53494744,92001.0,92000.0,0.78333317]
[1731999915227,0.56748993,92001.0,92000.0,0.78333317]
[1731999915874,0.56548993,92001.0,92000.0,0.78333317]
[1731999916456,0.53295003,92001.0,92000.0,0.78333317]
[1731999916661,0.56549271,92001.0,92000.0,0.78333317]
[1731999917077,0.56549271,92001.0,92000.0,0.49787748]
[1731999917540,0.56749271,92001.0,92000.0,0.49787748]
[1731999917964,0.56549271,92001.0,92000.0,0.49787748]
[1731999918179,0.57749271,92001.0,92000.0,0.49787748]
[1731999918422,0.57549271,92001.0,92000.0,0.49787748]
[1731999918880,0.4948931,92001.0,92000.0,0.49787748]
[1731999920045,0.49489218,92001.0,92000.0,0.49787748]
[1731999920722,0.48719218,92001.0,92000.0,0.49787748]
[1731999920948,0.47719218,92001.0,92000.0,0.49787748]
[1731999921594,0.42949218,92001.0,92000.0,0.49787748]
[1731999922265,0.40449218,92001.0,92000.0,0.49587748]
[1731999922485,0.26242963,92001.0,92000.0,0.49687748]
[1731999922721,0.29742963,92001.0,92000.0,0.49787748]
[1731999927396,0.29742963,92001.0,92000.0,0.2145718]
[1731999928269,0.40649218,92001.0,92000.0,0.2145718]
[1731999928488,0.42949218,92001.0,92000.0,0.2145718]
[1731999928713,0.52693785,92001.0,92000.0,0.2145718]
[1731999928947,0.46204503,92001.0,92000.0,0.2145718]
[1731999929184,0.42949218,92001.0,92000.0,0.2145718]
[1731999929606,0.57566068,92001.0,92000.0,0.2145718]
[1731999930050,0.46204797,92001.0,92000.0,0.2145718]
[1731999930267,0.42949218,92001.0,92000.0,0.2145718]
[1731999930484,0.37661125,92001.0,92000.0,0.2145718]
[1731999930703,0.39695894,92001.0,92000.0,0.2145718]
[1731999930919,0.42951524,92001.0,92000.0,0.2145718]
[1731999932329,0.52715226,92001.0,92000.0,0.2145718]
[1731999933243,0.42951524,92001.0,92000.0,0.2145718]
[1731999934297,0.42951301,92001.0,92000.0,0.2145718]
[1731999934730,0.29745046,92001.0,92000.0,0.2145718]
[1731999936935,0.1445487,92001.0,92000.0,0.2145718]
[1731999937188,0.1974462,92001.0,92000.0,0.2145718]
[1731999937417,0.0878975,92001.0,92000.0,0.2145718]
[1731999937628,0.143694,92001.0,92000.0,0.2145718]
[1731999937848,0.19658671,92001.0,92000.0,0.2145718]
[1731999938280,0.08789271,92001.0,92000.0,0.2935718]
[1731999938517,0.08789271,92001.0,92000.0,0.4022668]
[1731999938757,0.08789271,92001.0,92000.0,0.4503668]
[1731999938758,0.035,92001.0,92000.0,0.4503668]
[1731999938963,0.08788362,92001.0,92000.0,0.4503668]
[1731999939402,0.07788362,92001.0,92000.0,0.4493668]
[1731999939688,0.07888362,92001.0,92000.0,0.4593668]
[1731999940119,0.05388362,92001.0,92000.0,0.3486718]
[1731999940360,0.05788362,92001.0,92000.0,0.3486718]
[1731999940803,0.05788362,92001.0,92000.0,0.4573668]
[1731999941459,0.005,92001.0,92000.0,0.4573668]
[1731999941661,0.05784401,92001.0,92000.0,0.4573668]
[1731999942098,0.05784401,92001.0,92000.0,0.4673668]
[1731999942306,0.02532462,92001.0,92000.0,0.4673668]
[1731999943431,0.005,92001.0,92000.0,0.4673668]
[1731999945047,0.005,92001.0,92000.0,0.57642935]
[1731999946400,0.0058548,92001.0,92000.0,0.57642935]
[1731999947959,0.0058548,92001.0,92000.0,0.4673668]
[1731999948397,0.0058548,92001.0,92000.0,0.6740668]
[1731999949126,0.0058548,92001.0,92000.0,0.5653718]
[1731999949368,0.0058548,92001.0,92000.0,0.6259668]
[1731999950227,0.0058548,92001.0,92000.0,0.5072718]
[1731999950444,0.0008547,92008.0,92000.0,0.3005718]
[1731999950675,0.0008547,92008.0,92002.0,0.108692]
[1731999951086,0.108689,92006.0,92000.0,0.3005718]
[1731999951300,0.0008547,92008.0,92007.0,0.108687]
[1731999951727,0.0018547,92008.0,92007.0,0.108687]
[1731999951948,0.0018547,92008.0,92006.0,0.01]
[1731999952163,0.0008547,92008.0,92003.0,0.01]
[1731999952404,0.0028547,92008.0,92003.0,0.01]
[1731999952610,0.0008547,92008.0,92005.0,0.108689]
[1731999953030,0.0008547,92008.0,92007.0,0.003]
[1731999954221,0.0018547,92008.0,92007.0,0.011]
[1731999954895,0.0018547,92008.0,92007.0,0.008]
[1731999955116,0.0018547,92008.0,92007.0,0.116687]
[1731999955797,0.0018547,92008.0,92007.0,0.126687]
[1731999956020,0.0018547,92008.0,92007.0,0.21028661]
[1731999956475,0.0018547,92008.0,92007.0,0.09159961]
[1731999956695,0.0018547,92008.0,92007.0,0.021]
[1731999957354,0.0018547,92008.0,92007.0,0.011]
[1731999959145,0.1105407,92008.0,92007.0,0.011]
[1731999962300,0.02259575,92029.0,92008.0,0.0767]
[1731999962538,0.23981099,92060.0,92044.0,0.02]
[1731999962757,0.23981099,92060.0,92040.0,0.0006]
[1731999962758,0.04504995,92060.0,92059.0,0.01]
[1731999962982,0.04504995,92060.0,92059.0,0.118625]
[1731999963212,0.2735,92064.0,92063.0,0.118621]
[1731999963441,0.2735,92064.0,92063.0,0.22768355]
[1731999963660,0.29377501,92064.0,92063.0,0.11906255]
[1731999963898,0.38877501,92064.0,92063.0,0.11906255]
[1731999964369,0.38877501,92064.0,92063.0,0.24586115]
[1731999964595,0.39177501,92064.0,92063.0,0.26686115]
[1731999965029,0.39377501,92064.0,92063.0,0.28686115]
[1731999965248,0.39375681,92064.0,92063.0,0.16006255]
[1731999967245,0.50237681,92064.0,92063.0,0.16006255]
[1731999967462,0.31875681,92064.0,92063.0,0.16006255]
[1731999967678,0.12325681,92064.0,92063.0,0.14006255]
[1731999967928,0.55455633,92064.0,92063.0,0.11906255]
[1731999968149,0.44793633,92064.0,92063.0,0.13906255]
[1731999971207,0.35852981,92064.0,92063.0,0.13506255]
[1731999971419,0.23173121,92064.0,92063.0,0.13506255]
[1731999972354,0.2114744,92064.0,92063.0,0.13506255]
[1731999972585,0.23168775,92064.0,92063.0,0.13506255]
[1731999974577,0.26402652,92064.0,92063.0,0.13506255]
[1731999977511,0.33942652,92064.0,92063.0,0.13506255]
[1731999977988,0.26402652,92064.0,92063.0,0.13506255]
[1731999982232,0.26402652,92064.0,92063.0,0.13677115]
[1731999982451,0.16117212,92064.0,92063.0,0.13677115]
[1731999982935,0.10862,92064.0,92063.0,0.13677115]
[1731999983167,0.16121265,92064.0,92063.0,0.13677115]
[1731999984305,0.16321265,92064.0,92063.0,0.13677115]
[1731999984530,0.26121265,92064.0,92063.0,0.13677115]
[1731999987327,0.26321265,92064.0,92063.0,0.13677115]
[1731999987563,0.26121265,92064.0,92063.0,0.13677115]
[1731999987800,0.26321265,92064.0,92063.0,0.13677115]
[1731999988464,0.26121265,92064.0,92063.0,0.13677115]
[1731999992489,0.26121265,92064.0,92063.0,0.08789175]
[1731999992929,0.26121265,92064.0,92063.0,0.08389175]
[1731999993570,0.26146126,92064.0,92063.0,0.08389175]
[1731999994474,0.26231556,92064.0,92063.0,0.08389175]
[1731999997178,0.2623422,92064.0,92063.0,0.08389175]
[1731999997395,0.0537222,92064.0,92063.0,0.08389175]
[1731999997631,0.2623422,92064.0,92063.0,0.08389175]
[1731999997859,0.2623422,92064.0,92063.0,0.07489175]
[1731999998083,0.2633422,92064.0,92063.0,0.08789175]
[1731999998555,0.2623422,92064.0,92063.0,0.06789175]